bitfinex/quotes_ETHUSD_20220226
["timestamp","ask_amount","ask_price","bid_price","bid_amount"]
[1645901848594,1.33580809,2792.1,2791.9,0.17659612]
[1645901848794,1.28340858,2792.2,2791.9,0.17659612]
[1645901849194,1.33580207,2792.1,2791.9,0.17659612]
[1645901849393,1.28340858,2792.2,2791.9,0.17659612]
[1645901849593,1.33580128,2792.1,2791.9,0.17659612]
[1645901849793,1.33575164,2792.0,2791.9,0.17659612]
[1645901849993,1.33575313,2792.1,2791.9,0.17659612]
[1645901850196,1.28340858,2792.2,2791.9,0.17659612]
[1645901850396,1.33575014,2792.1,2791.9,0.17659612]
[1645901850597,1.28340858,2792.2,2791.9,0.17659612]
[1645901851052,1.33570178,2792.1,2791.9,0.17659612]
[1645901851247,1.28340858,2792.2,2791.9,0.17659612]
[1645901851851,1.33563764,2792.1,2792.0,0.17659612]
[1645901852058,1.33564427,2792.1,2792.0,0.17659612]
[1645901852253,1.28340858,2792.2,2792.0,0.17659612]
[1645901852453,1.33565544,2792.1,2791.8,0.87744026]
[1645901852654,1.28340858,2792.2,2791.9,0.17414495]
[1645901852853,1.33566808,2792.1,2791.9,0.17414495]
[1645901853053,1.33567041,2792.0,2791.9,0.17414495]
[1645901853255,1.28340858,2792.2,2791.9,0.84058787]
[1645901853459,1.33565619,2792.1,2791.9,8.00398787]
[1645901853654,1.33565619,2792.1,2792.0,0.17414495]
[1645901854055,1.33565619,2792.1,2792.0,7.33754495]
[1645901857608,4.83565619,2792.1,2792.0,7.33754495]
[1645901857805,1.33565619,2792.1,2792.0,7.33754495]
[1645901858007,2.01423579,2792.1,2792.0,7.33754495]
[1645901858442,5.51423579,2792.1,2792.0,7.33754495]
[1645901858648,2.01423579,2792.1,2792.0,7.33754495]
[1645901858844,5.51423579,2792.1,2792.0,7.33754495]
[1645901859042,2.01423579,2792.1,2792.0,7.33754495]
[1645901859243,2.01423579,2792.1,2792.0,7.1634]
[1645901859842,5.51423579,2792.1,2792.0,7.1634]
[1645901860748,1.33565619,2792.1,2792.0,7.29786212]
[1645901860951,4.83565619,2792.1,2792.0,7.29786212]
[1645901861350,4.83565619,2792.1,2792.0,7.29787796]
[1645901862000,1.33565619,2792.1,2792.0,7.1634]
[1645901862506,4.83565619,2792.1,2792.0,7.1634]
[1645901862705,1.33565619,2792.1,2792.0,7.29773903]
[1645901866252,1.5743675,2792.6,2792.0,7.29773903]
[1645901866253,0.69667782,2792.7,2792.2,7.8]
[1645901866557,0.01809822,2792.7,2792.2,7.8]
[1645901866747,0.6785796,2792.9,2792.2,8.8]
[1645901867449,0.0226817,2793.0,2792.2,8.8]
[1645901867450,0.7012613,2793.0,2792.2,8.8]
[1645901867850,0.6785796,2793.0,2792.2,8.8]
[1645901868051,1.5741896,2793.0,2792.2,8.8]
[1645901868251,2.47434601,2793.0,2792.2,8.8]
[1645901869054,2.4698096,2793.0,2792.2,8.8]
[1645901869251,2.47417059,2793.0,2792.2,8.8]
[1645901869504,2.47417059,2793.0,2792.2,1.0]
[1645901869702,2.47417059,2793.0,2792.0,8.1634]
[1645901869905,2.47417059,2793.0,2792.0,8.4634]
[1645901870303,2.4698096,2793.0,2792.0,8.4634]
[1645901870504,2.47417441,2793.0,2792.0,8.4634]
[1645901871507,2.4698096,2793.0,2792.0,8.4634]
[1645901871716,2.47417441,2793.0,2792.0,8.4634]
[1645901872007,0.6785796,2792.9,2792.0,8.4634]
[1645901872907,4.5371796,2792.9,2792.0,7.1634]
[1645901873110,1.5742884,2792.8,2792.0,7.1634]
[1645901873348,0.8957,2792.6,2792.0,7.1634]
[1645901873845,3.8586,2792.9,2792.0,7.1634]
[1645901873846,4.1785796,2792.9,2792.0,7.1634]
[1645901874249,4.19610874,2792.9,2792.0,7.1634]
[1645901874644,4.19610874,2792.9,2792.0,8.1634]
[1645901875044,1.25423,2792.8,2792.0,8.1634]
[1645901875245,1.15423,2792.8,2792.0,8.1634]
[1645901876448,0.89571,2792.6,2792.0,8.1634]
[1645901877102,3.5,2792.5,2792.0,7.1634]
[1645901878698,2.4700823,2792.6,2792.0,7.1634]
[1645901878898,1.7915027,2792.6,2792.0,7.1634]
[1645901879299,0.89571,2792.6,2792.0,7.1634]
[1645901882856,1.25431,2792.6,2792.0,7.1634]
[1645901883055,0.89571,2792.6,2792.0,7.1634]
[1645901884355,0.01752286,2792.9,2792.1,0.63892754]
[1645901884624,0.01752286,2792.9,2792.6,0.19192674]
[1645901885227,0.00438057,2793.0,2792.6,0.19192674]
[1645901886028,0.6785796,2793.1,2792.6,0.19192674]
[1645901886227,0.6785796,2793.1,2792.7,0.1606798]
[1645901886429,1.35142735,2793.0,2792.7,0.1606798]
[1645901886728,1.34704656,2792.9,2792.7,0.1606798]
[1645901887339,1.34704656,2792.8,2792.7,0.1606798]
[1645901887732,1.34704656,2792.9,2792.7,0.1606798]
[1645901887933,1.34704656,2792.8,2792.7,0.1606798]
[1645901888560,2.02562616,2793.2,2792.7,0.1606798]
[1645901888762,0.00439105,2793.0,2792.7,0.1606798]
[1645901889161,0.00439105,2793.0,2792.9,0.3586]
[1645901889361,0.00439105,2793.0,2792.9,1.6457]
[1645901889761,0.00380436,2793.6,2792.9,1.6457]
[1645901889966,0.6785796,2793.7,2793.0,1.28639867]
[1645901890161,0.00439112,2793.1,2793.0,0.433]
[1645901890463,0.00439112,2793.1,2793.0,8.78902]
[1645901890867,0.01756186,2793.5,2793.0,9.78902]
[1645901891362,0.00440104,2793.2,2793.0,10.03140582]
[1645901891569,0.89989576,2794.3,2793.2,12.0]
[1645901891771,4.04225304,2794.6,2793.8,4.99768641]
[1645901891772,0.007,2794.6,2793.8,4.99768641]
[1645901892008,0.51412957,2795.0,2794.2,0.96307331]
[1645901892213,1.0,2795.4,2794.3,0.67212479]
[1645901892409,3.5,2795.5,2794.4,8.28931635]
[1645901892614,1.35684364,2795.6,2794.6,1.78923]
[1645901892808,1.35684364,2795.6,2794.6,2.52223]
[1645901893209,0.007,2795.6,2794.6,3.52223]
[1645901893410,0.007,2795.4,2794.6,1.733]
[1645901893812,0.007,2795.4,2794.4,7.1572]
[1645901894013,0.3586,2795.3,2794.4,7.1572]
[1645901894215,0.3586,2794.8,2794.4,7.1572]
[1645901894412,0.3586,2794.6,2794.4,7.1572]
[1645901894612,3.5,2794.5,2794.4,7.1572]
[1645901894813,3.8586,2794.5,2794.4,7.1572]
[1645901895012,4.1586,2794.5,2794.4,7.1572]
[1645901895861,4.3017,2794.5,2794.4,7.1572]
[1645901897963,4.3017,2794.5,2794.4,1.78471]
[1645901898158,4.3017,2794.5,2793.6,0.54783588]
[1645901898159,0.3586,2794.2,2793.6,0.54783588]
[1645901898361,1.25402,2794.0,2793.6,0.54783588]
[1645901898560,0.3586,2793.9,2793.6,0.54783588]
[1645901898759,3.8586,2793.9,2793.4,0.00498686]
[1645901899159,0.3586,2793.7,2793.4,0.00498686]
[1645901899360,1.24218272,2793.6,2793.1,3.3869]
[1645901899641,1.25399,2793.7,2793.1,3.3869]
[1645901899841,0.89539,2793.7,2793.4,0.00498617]
[1645901900243,0.00498547,2793.8,2793.4,0.00498617]
[1645901900645,5.29437598,2794.0,2793.1,3.3869]
[1645901900848,0.00498551,2793.7,2793.4,0.00498613]
[1645901901442,0.00498551,2793.7,2793.5,7.1594]
[1645901901842,0.00378598,2794.2,2793.5,9.21588378]
[1645901902046,0.00498551,2793.7,2793.5,8.1594]
[1645901903057,0.00378598,2794.2,2793.5,8.8924]
[1645901903269,0.00498551,2793.7,2793.5,8.8924]
[1645901903452,0.00498551,2793.7,2793.5,9.44238926]
[1645901904153,0.12608802,2793.9,2793.5,9.44238926]
[1645901904356,0.00498551,2793.7,2793.5,9.44238926]
[1645901904959,0.6020344,2794.3,2793.5,14.79867567]
[1645901905157,0.59824842,2794.3,2793.6,12.89503]
[1645901905457,0.59824842,2794.3,2793.8,0.19203531]
[1645901905661,0.59824842,2794.3,2793.8,0.7916]
[1645901905854,0.59824842,2794.3,2793.8,1.0916]
[1645901907298,0.59824842,2794.3,2793.9,7.1584]
[1645901907501,0.59824842,2794.3,2793.9,7.4584]
[1645901907701,0.59824842,2794.3,2793.9,8.8914]
[1645901907900,0.59824842,2794.3,2793.9,9.78633]
[1645901908102,0.00498505,2794.2,2793.9,9.78633]
[1645901909102,0.59824842,2794.3,2793.9,9.78633]
[1645901909302,0.59824842,2794.3,2793.9,8.8914]
[1645901909303,0.00350237,2794.2,2793.9,8.8914]
[1645901910005,3.50350237,2794.2,2793.9,7.1584]
[1645901910209,0.95684842,2794.3,2793.9,7.1584]
[1645901910210,1.21609307,2794.1,2793.9,7.1584]
[1645901910404,0.95684842,2794.3,2793.9,7.1584]
[1645901910757,1.21597928,2794.2,2793.9,7.1584]
[1645901912859,1.22096437,2794.2,2793.9,7.1584]
[1645901913058,1.21597928,2794.1,2793.9,7.1584]
[1645901914059,0.00498505,2794.2,2793.9,7.1584]
[1645901914359,1.2160961,2794.1,2793.9,7.1584]
[1645901915308,1.2160961,2794.0,2793.9,7.1584]
[1645901915507,1.2160961,2794.1,2793.9,7.1584]
[1645901915708,1.2160961,2794.0,2793.9,7.1584]
[1645901915912,1.2160961,2794.1,2793.9,7.1584]
[1645901916409,1.2160961,2794.0,2793.9,7.1584]
[1645901916611,1.2160961,2794.1,2793.9,7.1584]
[1645901916812,1.1660961,2794.1,2793.9,7.1584]
[1645901918353,3.8586,2794.0,2793.9,7.1584]
[1645901918756,4.0017,2794.0,2793.9,7.1584]
[1645901919255,5.07166647,2794.0,2793.9,7.1584]
[1645901920457,4.92856647,2794.0,2793.9,7.1584]
[1645901921657,4.87856647,2794.0,2793.9,7.1584]
[1645901922907,3.7086,2794.0,2793.9,7.1584]
[1645901923911,4.92372731,2794.0,2793.9,7.1584]
[1645901924105,4.81893477,2794.0,2793.9,7.1584]
[1645901925007,3.60380746,2794.0,2793.9,7.1584]
[1645901925208,0.25380746,2794.0,2793.9,5.54453606]
[1645901928859,0.25879173,2794.2,2793.9,5.54453606]
[1645901929064,0.93303802,2794.2,2793.9,5.54453606]
[1645901929506,0.92805375,2794.2,2793.9,5.54453606]
[1645901929707,0.9330381,2794.2,2793.9,5.54453606]
[1645901930711,0.92805375,2794.2,2793.9,5.54453606]
[1645901930910,0.9330381,2794.2,2793.9,5.54453606]
[1645901931110,0.25879181,2794.2,2793.9,5.54453606]
[1645901931508,0.25879181,2794.2,2793.9,6.54453606]
[1645901931717,0.20380746,2794.2,2793.9,6.54453606]
[1645901932112,0.20879181,2794.2,2793.9,6.54453606]
[1645901932513,0.20879181,2794.2,2793.9,5.54453606]
[1645901932714,0.20879181,2794.2,2794.0,0.89507]
[1645901932915,0.20380746,2794.2,2794.0,0.89507]
[1645901933355,0.20879181,2794.2,2794.0,0.89507]
[1645901934157,0.20879181,2794.2,2794.0,1.73307]
[1645901934158,0.20380746,2794.2,2794.0,1.73307]
[1645901934364,0.20380746,2794.2,2794.0,0.838]
[1645901934556,0.20879177,2794.2,2794.0,0.838]
[1645901935060,0.20879177,2794.2,2794.0,1.09803486]
[1645901935461,0.20380746,2794.2,2794.0,1.09803486]
[1645901935757,0.20879177,2794.2,2794.1,0.89505]
[1645901935962,0.59824842,2794.3,2794.2,7.5]
[1645901936557,0.59824842,2794.3,2794.1,1.32805]
[1645901936760,1.18811557,2794.2,2794.1,1.32805]
[1645901937011,1.18811557,2794.2,2794.1,1.64352616]
[1645901937209,1.18811557,2794.2,2794.1,10.41532616]
[1645901937508,1.18811557,2794.2,2794.1,11.41532616]
[1645901940946,1.18811557,2794.2,2794.1,12.41532616]
[1645901941147,1.18811557,2794.2,2794.1,12.09985]
[1645901941845,1.18811557,2794.2,2794.1,11.09985]
[1645901942351,1.18811557,2794.2,2794.1,11.41539668]
[1645901942549,1.18811557,2794.2,2794.1,11.09985]
[1645901942750,1.18811557,2794.2,2794.1,11.41536567]
[1645901942951,1.18811557,2794.2,2794.1,10.98236567]
[1645901943552,1.18811557,2794.2,2794.1,8.7718]
[1645901945016,1.18811557,2794.2,2794.1,7.15828117]
[1645901946319,1.18811557,2794.2,2794.1,7.69500968]
[1645901946523,1.27747888,2794.3,2794.1,7.15828117]
[1645901946722,5.36236186,2794.2,2794.1,7.15828117]
[1645901946921,1.86236186,2794.2,2794.1,7.15828117]
[1645901948359,5.36236186,2794.2,2794.1,7.15828117]
[1645901948559,1.86236186,2794.2,2794.1,7.15828117]
[1645901949358,5.36236186,2794.2,2794.1,7.15828117]
[1645901949959,1.86236186,2794.2,2794.1,7.15828117]
[1645901950965,4.68811557,2794.2,2794.1,7.15828117]
[1645901951363,5.73021766,2794.2,2794.1,7.15828117]
[1645901951565,4.68811557,2794.2,2794.1,7.15828117]
[1645901954615,1.86619417,2794.2,2794.1,7.15828117]
[1645901954816,1.18811557,2794.2,2794.1,7.15828117]
[1645901956453,4.68811557,2794.2,2794.1,7.15828117]
[1645901957565,1.18811557,2794.2,2794.1,7.15828117]
[1645901958157,2.50823048,2794.2,2794.1,7.15828117]
[1645901958560,1.18811557,2794.2,2794.1,7.15828117]
[1645901965068,1.18811557,2794.2,2794.1,5.54457826]
[1645901966672,1.28141182,2794.3,2794.1,6.35413608]
[1645901966673,0.59824842,2794.3,2794.1,6.35413608]
[1645901966875,1.34984364,2795.1,2794.3,5.0]
[1645901966876,0.68196521,2794.6,2794.3,5.0]
[1645901967112,0.67817923,2794.5,2794.3,5.0]
[1645901967307,0.67817923,2794.6,2794.2,0.1431]
[1645901967510,0.67817923,2794.6,2794.4,0.89483]
[1645901967908,0.5,2794.7,2794.4,0.89483]
[1645901967909,1.17817923,2794.7,2794.4,0.89483]
[1645901968115,0.00498403,2794.5,2794.4,0.89483]
[1645901969109,1.17817923,2794.7,2794.4,0.89483]
[1645901969309,0.00498398,2794.6,2794.4,0.89483]
[1645901970214,1.17817923,2794.7,2794.4,0.89483]
[1645901970411,0.00498393,2794.6,2794.4,0.89483]
[1645901971453,1.17817923,2794.7,2794.4,0.89483]
[1645901971652,0.00498393,2794.6,2794.4,0.89483]
[1645901972556,0.5,2794.7,2794.4,0.89483]
[1645901972957,0.00498393,2794.6,2794.4,0.89483]
[1645901973759,0.5,2794.7,2794.4,0.89483]
[1645901974160,0.00498393,2794.6,2794.4,0.89483]
[1645901975002,0.5,2794.7,2794.4,0.89483]
[1645901975402,0.00498393,2794.6,2794.3,1.78966]
[1645901976203,0.5,2794.7,2794.3,1.78966]
[1645901976204,1.17817923,2794.7,2794.3,1.78966]
[1645901976405,0.00498398,2794.6,2794.3,1.78966]
[1645901977407,1.17817923,2794.7,2794.3,1.78966]
[1645901977608,0.00498398,2794.6,2794.3,1.78966]
[1645901978564,1.17817923,2794.7,2794.3,1.78966]
[1645901978565,0.5,2794.7,2794.3,1.78966]
[1645901978757,0.00237698,2794.6,2794.3,1.78966]
[1645901979762,0.5,2794.7,2794.3,1.78966]
[1645901979961,0.00221701,2794.6,2794.3,1.78966]
[1645901980964,0.5,2794.7,2794.3,1.78966]
[1645901981363,0.00482051,2794.6,2794.3,1.78966]
[1645901982216,1.17817923,2794.7,2794.3,1.78966]
[1645901982416,0.00482051,2794.6,2794.3,1.78966]
[1645901983417,1.17817923,2794.7,2794.3,1.78966]
[1645901983614,0.00482051,2794.6,2794.3,1.78966]
[1645901984614,1.17817923,2794.7,2794.3,1.78966]
[1645901985019,0.00467457,2794.6,2794.3,1.78966]
[1645901985216,0.00467457,2794.6,2794.3,0.17633434]
[1645901985861,0.5,2794.7,2794.3,0.17633434]
[1645901986059,0.00467457,2794.6,2794.3,0.17633434]
[1645901986859,1.07115865,2794.5,2794.3,0.17633434]
[1645901987364,1.07115865,2794.4,2794.3,0.17633434]
[1645901987566,1.07115865,2794.4,2794.3,0.60718119]
[1645901987764,1.07115865,2794.5,2794.3,0.60718119]
[1645901987967,1.07115865,2794.4,2794.3,0.17633434]
[1645901988468,0.00468425,2794.5,2794.3,0.17633434]
[1645901988663,1.07115865,2794.4,2794.3,0.17633434]
[1645901989701,0.0046843,2794.5,2794.3,0.60715366]
[1645901989901,1.07115865,2794.4,2794.3,0.17633434]
[1645901990101,1.07115865,2794.4,2794.3,0.6071112]
[1645901991101,0.0046843,2794.5,2794.3,0.6071112]
[1645901991302,1.07115865,2794.4,2794.3,0.17633434]
[1645901991710,0.0046843,2794.5,2794.4,11.28966]
[1645901991910,0.5,2794.7,2794.4,12.25996]
[1645901992110,0.5,2794.7,2794.5,0.433]
[1645901992507,0.5,2794.7,2794.6,11.998]
[1645901992709,0.0187311,2794.9,2794.6,12.998]
[1645901992908,0.0187311,2794.9,2794.7,2.68386]
[1645901993108,0.00378598,2795.2,2794.7,3.41686]
[1645901993356,0.0020834,2794.9,2794.7,4.41686]
[1645901993553,0.0020834,2794.9,2794.8,11.997]
[1645901993758,0.00833236,2795.3,2794.8,11.997]
[1645901993759,0.01211834,2795.3,2795.2,1.12831249]
[1645901993958,0.00833236,2795.3,2795.2,2.02287249]
[1645901994155,0.007,2795.4,2795.2,2.02287249]
[1645901994364,0.007,2795.4,2795.2,3.15367249]
[1645901994972,0.67672849,2795.8,2795.4,12.0]
[1645901995157,0.68051447,2796.2,2795.5,1.32736]
[1645901995465,0.00378598,2796.4,2795.6,0.20833148]
[1645901995658,0.00378598,2796.4,2795.7,0.433]
[1645901995856,0.0451558,2796.2,2795.7,1.0916]
[1645901996058,0.0451558,2796.2,2795.9,4.07435983]
[1645901996257,0.0451558,2796.2,2796.0,0.433]
[1645901996460,0.0451558,2796.2,2796.1,11.994]
[1645901996656,0.01803872,2796.5,2796.1,11.994]
[1645901997107,0.00498245,2796.2,2796.1,11.994]
[1645901997309,0.00498245,2796.2,2796.1,12.88825]
[1645901997909,0.01803872,2796.5,2796.1,12.88825]
[1645901997910,0.69476721,2796.5,2796.1,12.88825]
[1645901998208,0.0049824,2796.3,2796.1,12.88825]
[1645901999007,0.69476721,2796.5,2796.1,12.88825]
[1645901999412,0.00498236,2796.3,2796.1,12.88825]
[1645902000309,0.69476721,2796.5,2796.1,12.88825]
[1645902000507,0.00498236,2796.3,2796.1,12.88825]
[1645902000780,0.00498236,2796.3,2796.1,11.994]
[1645902000781,1.52510574,2796.3,2796.1,11.994]
[1645902000966,3.5,2796.2,2796.1,11.994]
[1645902001567,3.8586,2796.2,2796.1,11.994]
[1645902001969,5.41432696,2796.2,2796.1,11.994]
[1645902002367,5.27142696,2796.2,2796.1,11.994]
[1645902002768,6.27142696,2796.2,2796.1,12.10787653]
[1645902002972,6.94554362,2796.2,2796.1,12.10787653]
[1645902003171,5.27142696,2796.2,2796.1,12.10787653]
[1645902004826,6.94561337,2796.2,2796.1,12.10787653]
[1645902005026,1.3586,2796.2,2796.1,12.10787653]
[1645902005228,0.67418641,2796.2,2796.1,10.4951754]
[1645902005431,0.3049824,2796.3,2796.1,10.4951754]
[1645902005627,0.0049824,2796.3,2796.1,10.4951754]
[1645902005826,0.0049824,2796.3,2796.2,0.11387653]
[1645902006026,0.67916881,2796.3,2796.2,0.11387653]
[1645902006228,0.97418641,2796.4,2796.2,0.11387653]
[1645902006527,0.97916872,2796.4,2796.1,10.38129887]
[1645902007141,0.67916872,2796.4,2796.1,10.38129887]
[1645902007340,0.00498231,2796.4,2796.1,10.38129887]
[1645902007538,0.01803872,2796.5,2796.2,0.11387653]
[1645902007736,0.00498231,2796.4,2796.2,2.76299653]
[1645902007936,0.00498231,2796.4,2796.3,1.31963803]
[1645902008136,0.00498231,2796.4,2796.3,1.82113803]
[1645902008360,0.00498231,2796.4,2796.3,15.86013803]
[1645902008559,0.00498231,2796.4,2796.3,15.42713803]
[1645902008760,0.01803872,2796.5,2796.3,16.42713803]
[1645902008958,0.01803872,2796.5,2796.4,0.11387653]
[1645902009157,0.01803872,2796.5,2796.4,1.19615559]
[1645902009357,0.01803872,2796.5,2796.4,14.80215559]
[1645902009765,0.01803872,2796.5,2796.4,15.80215559]
[1645902011059,0.01803872,2796.5,2796.4,16.16075559]
[1645902011258,0.01803872,2796.5,2796.4,16.59375559]
[1645902013419,0.01803872,2796.5,2796.4,16.73665559]
[1645902013623,0.00378598,2796.8,2796.7,0.3586]
[1645902013815,3.7228167,2797.0,2796.7,1.2345]
[1645902013816,3.81746612,2797.0,2796.7,1.2345]
[1645902014016,0.67418641,2797.9,2796.7,1.2345]
[1645902014017,0.00378598,2797.5,2796.9,2.14619]
[1645902014216,0.99471122,2797.8,2797.0,1.0916]
[1645902014419,0.99092524,2797.7,2797.4,1.08227906]
[1645902014623,0.00378598,2798.2,2797.6,12.0]
[1645902014831,1.0,2798.7,2797.8,8.5]
[1645902014832,0.90378598,2798.7,2797.8,8.5]
[1645902015017,0.90378598,2798.7,2797.7,3.933]
[1645902015018,0.67418641,2798.8,2797.9,4.2916]
[1645902015217,0.67418641,2798.8,2798.0,0.433]
[1645902015416,0.67418641,2798.8,2798.1,0.433]
[1645902015619,0.67418641,2798.8,2798.2,0.11387653]
[1645902016071,0.67418641,2798.9,2798.2,0.11387653]
[1645902016268,0.00229829,2798.6,2798.2,0.11387653]
[1645902016466,0.36089829,2798.6,2797.6,7.7252]
[1645902016768,8.02089829,2798.6,2797.6,7.7252]
[1645902016970,4.82168871,2798.5,2797.6,2.8201]
[1645902017174,3.6429,2798.5,2798.1,0.11387653]
[1645902017375,0.1429,2798.5,2797.6,0.7916]
[1645902017672,7.11,2798.6,2797.6,2.0916]
[1645902017871,4.42418641,2798.9,2797.6,1.733]
[1645902018072,5.42418641,2798.9,2797.6,0.5759]
[1645902018272,4.17418641,2798.8,2797.5,1.2252]
[1645902018471,0.67418641,2798.6,2797.5,1.2252]
[1645902018671,3.5,2798.5,2798.0,0.11387653]
[1645902018872,0.1429,2798.7,2797.5,1.2252]
[1645902019072,0.1429,2798.7,2797.5,2.11909]
[1645902019273,0.89396,2798.6,2797.5,2.11909]
[1645902019511,1.19396,2798.6,2797.5,2.11909]
[1645902019713,1.19396,2798.6,2798.0,1.08227906]
[1645902019918,1.19049342,2798.6,2798.0,1.08227906]
[1645902020312,0.3,2798.6,2798.3,0.11387653]
[1645902020520,1.46171439,2798.7,2798.0,1.08227906]
[1645902021113,0.00495891,2798.6,2798.0,1.08227906]
[1645902021715,0.00495891,2798.6,2798.3,0.11387653]
[1645902021915,0.89762957,2798.8,2798.0,1.08227906]
[1645902022121,0.00495905,2798.4,2798.0,1.08227906]
[1645902022718,0.00495905,2798.4,2798.1,0.89371]
[1645902023122,0.00376957,2798.8,2798.1,0.89371]
[1645902023357,0.0049591,2798.4,2798.2,0.11387653]
[1645902023562,0.0049591,2798.4,2798.1,0.89371]
[1645902024355,0.00376957,2798.8,2798.1,0.89371]
[1645902024557,6.40422754,2799.0,2798.1,0.89371]
[1645902024755,0.00496111,2798.4,2798.1,0.89371]
[1645902024956,0.00496111,2798.4,2798.2,0.54113953]
[1645902025163,0.00496111,2798.4,2798.1,0.89132283]
[1645902025657,6.40422754,2799.0,2798.1,0.89132283]
[1645902025958,0.00496111,2798.4,2798.1,0.89132283]
[1645902026356,0.00496111,2798.4,2798.2,0.11387653]
[1645902026556,0.00496111,2798.4,2798.1,0.89132283]
[1645902026756,6.40422754,2799.0,2798.1,0.89132283]
[1645902027005,0.00496106,2798.4,2798.1,0.89132283]
[1645902028009,6.40422754,2799.0,2798.2,0.11387653]
[1645902028210,0.00496111,2798.4,2798.1,0.89132283]
[1645902029213,6.10422754,2799.0,2798.2,1.22219815]
[1645902029416,0.09424698,2798.8,2798.4,1.00747653]
[1645902029618,0.09424698,2798.8,2798.4,0.8936]
[1645902030323,5.962258,2799.0,2798.4,0.8936]
[1645902030517,5.962258,2799.0,2798.5,3.5]
[1645902030790,5.962258,2799.0,2798.6,0.7916]
[1645902030791,0.00496078,2798.7,2798.6,0.7916]
[1645902030979,5.962258,2799.0,2798.8,0.47247653]
[1645902031168,5.962258,2799.0,2798.9,14.92533]
[1645902031968,5.962258,2799.0,2798.9,16.01864856]
[1645902032174,5.306158,2799.0,2798.9,16.37724856]
[1645902032373,5.306158,2799.0,2798.9,17.67724856]
[1645902032578,5.306158,2799.0,2798.9,16.33920653]
[1645902032773,5.306158,2799.0,2798.9,15.03920653]
[1645902033173,5.306158,2799.0,2798.9,14.60620653]
[1645902033377,5.306158,2799.0,2798.9,13.71287653]
[1645902033773,6.32071155,2799.0,2798.9,13.71287653]
[1645902034175,6.67931155,2799.0,2798.9,13.71287653]
[1645902034374,6.67931155,2799.0,2798.9,8.30124005]
[1645902034640,0.3586,2798.7,2797.2,3.9094]
[1645902034826,0.3586,2798.5,2797.1,1.1662]
[1645902035027,1.10236352,2797.9,2797.4,0.52289742]
[1645902035227,0.5015,2798.3,2797.4,0.52289742]
[1645902035427,0.00376957,2798.2,2797.5,0.89389]
[1645902035732,0.3586,2798.3,2797.5,0.89389]
[1645902035927,0.00376957,2798.2,2797.5,0.89389]
[1645902036129,0.00376957,2798.3,2797.5,3.5]
[1645902036328,0.00376957,2798.3,2797.4,0.95589742]
[1645902036528,0.00376957,2798.6,2797.5,0.20239378]
[1645902036729,0.94122908,2798.7,2797.6,0.62464439]
[1645902036730,0.07449498,2798.4,2797.6,0.62464439]
[1645902037135,0.07449498,2798.4,2797.7,1.78736]
[1645902037535,0.00376957,2798.5,2797.7,1.78736]
[1645902037738,0.00376957,2798.6,2797.7,1.78736]
[1645902037937,0.07826167,2798.6,2797.7,1.78736]
[1645902038761,0.00376957,2798.6,2797.7,3.09930119]
[1645902039161,0.00376957,2798.6,2797.7,1.78736]
[1645902039361,0.07826023,2798.7,2797.7,1.78736]
[1645902039660,3.57826023,2798.7,2797.7,1.78736]
[1645902039859,0.07826023,2798.7,2797.7,1.78736]
[1645902040059,0.00376957,2798.7,2797.7,1.78736]
[1645902040261,0.94609155,2798.7,2797.7,1.78736]
[1645902040464,2.12162178,2798.7,2797.7,1.78736]
[1645902040765,0.00376957,2798.7,2797.8,0.26290667]
[1645902040965,0.94620718,2798.7,2798.1,0.89364]
[1645902041161,0.94243761,2798.7,2798.1,0.89364]
[1645902041563,2.52005198,2798.8,2798.1,0.89364]
[1645902042406,2.4207333,2798.8,2798.1,0.89364]
[1645902042606,2.42569936,2798.8,2798.2,7.1468]
[1645902043612,2.4207333,2798.8,2798.2,7.1468]
[1645902043806,2.42555042,2798.8,2798.2,7.1468]
[1645902044409,2.4236858,2798.8,2798.2,7.1468]
[1645902044811,2.41886868,2798.8,2798.2,7.1468]
[1645902045009,2.4236858,2798.8,2798.2,7.1468]
[1645902045209,2.4236858,2798.8,2798.2,5.53577449]
[1645902045857,0.91333374,2798.7,2798.2,5.53577449]
[1645902048063,2.4235063,2798.8,2798.2,5.53577449]
[1645902048264,2.4235063,2798.8,2798.3,1.78704]
[1645902048563,0.91545737,2798.7,2798.3,1.78704]
[1645902052916,0.91545737,2798.7,2798.4,1.92993]
[1645902053123,0.91545737,2798.7,2798.4,2.36293]
[1645902053560,0.91545737,2798.7,2798.4,2.22003]
[1645902053966,0.91545737,2798.7,2798.4,3.2740541]
[1645902054360,0.91545737,2798.7,2798.6,0.89344]
[1645902056765,2.41509911,2798.8,2798.6,0.89344]
[1645902057017,0.91976614,2798.7,2798.6,0.89344]
[1645902057421,2.41974819,2798.8,2798.6,0.89344]
[1645902057721,0.92040434,2798.7,2798.6,1.89344]
[1645902058531,0.67795598,2799.4,2798.6,1.89344]
[1645902058532,1.26313897,2799.9,2798.9,13.25194]
[1645902058735,10.0,2800.0,2799.1,0.3586]
[1645902058923,10.0,2800.0,2799.2,4.11857958]
[1645902059130,10.0,2800.0,2799.5,1.39861451]
[1645902059326,10.0,2800.0,2799.6,1.32597]
[1645902059524,10.0,2800.0,2799.7,0.25335341]
[1645902059723,10.0,2800.0,2799.8,9.1874]
[1645902060127,10.0,2800.0,2799.8,9.4874]
[1645902060324,10.0,2800.0,2799.8,10.4874]
[1645902060763,10.0,2800.0,2799.8,10.1874]
[1645902060958,10.0,2800.0,2799.8,9.1874]
[1645902061158,10.0,2800.0,2799.8,8.7544]
[1645902062363,10.0,2800.0,2799.9,0.89311]
[1645902062563,10.0,2800.0,2799.9,9.64721]
[1645902065331,10.0,2800.0,2799.9,8.03697722]
[1645902065527,10.0,2800.0,2799.9,8.57645113]
[1645902065927,10.008,2800.0,2799.9,9.46956113]
[1645902067230,9.758,2800.0,2799.9,9.46956113]
[1645902069072,0.72669076,2800.5,2800.0,12.0]
[1645902069275,0.09427713,2800.5,2800.2,0.89284]
[1645902069473,0.09427713,2800.5,2800.3,0.433]
[1645902069872,0.09427713,2800.5,2800.4,9.4699]
[1645902070072,7.36,2801.0,2800.4,9.4699]
[1645902070073,1.12554799,2800.8,2800.4,9.4699]
[1645902070273,7.36,2801.0,2800.4,9.4699]
[1645902071173,7.6686,2801.0,2800.4,9.4699]
[1645902071374,7.31,2801.0,2800.4,9.4699]
[1645902071575,0.00220336,2800.8,2800.5,0.89293]